Cogmind - Beta 16 @@@ ROGUE MODE // 2025.10.24 @ 19:19:51 Player: Moodge Result: Destroyed by G-34 Mercenary with Small Laser Performance ------------- Evolutions (0) 0 Regions Visited (1) 200 Robots Destroyed (17) 85 Value Destroyed (345) 345 Prototype IDs (0) 0 Alien Tech Used (0) 0 Bonus (0) 0 TOTAL SCORE: 630 Bonus ------- None Cogmind --------- Core Integrity 0/250 Matter 281/300 Energy 95/125 System Corruption 0% Temperature Cool (6) Movement Walking (190) Ox1 Location -10/Materials Parts ------- > --- POWER (1) -------- Light Ion Engine > --- PROPULSION (2) --- Aluminum Leg Aluminum Leg > --- UTILITY (2) ------ Medium Storage Unit Medium Storage Unit > --- WEAPON (2) ------- Particle Gun Mining Claw > --- INVENTORY (10) --- Light Ion Engine Light Ion Engine Light Ion Engine Light Ion Engine Light Nuclear Core Light Nuclear Core Hover Unit Flight Unit Flight Unit Small Storage Unit Peak State ------------ > --- POWER ------------ Light Ion Engine > --- PROPULSION ------- Light Treads Light Treads > --- UTILITY ---------- Small Storage Unit Visual Processing Unit > --- WEAPON ----------- Assault Rifle Mining Claw > --- INVENTORY -------- Ion Engine Ion Engine Ion Engine Light Ion Engine Light Nuclear Core Wheel Compact Wheel Hover Unit [Rating: 9] Favorites ----------- Power Light Ion Engine Engine Light Ion Engine Propulsion Light Treads Treads Light Treads Leg Aluminum Leg Wheel Compact Wheel Utility Small Storage Unit Device Terrain Scanner Storage Small Storage Unit Processor Visual Processing Unit Weapon Mining Claw Energy Gun Small Laser Ballistic Gun Assault Rifle Slashing Weapon Mining Claw Build | -11 -10 ------- Run | Yrd Mat Slots Evolved . | . . Power . | . . Propulsion . | . . Utility . | . . Weapon . | . . Parts Attached 21 | 7 14 Power 4 | 1 3 Engine 4 | 1 3 Core . | . . Reactor . | . . Propulsion 6 | 2 4 Treads 2 | 2 . Leg 2 | . 2 Wheel 2 | . 2 Hover . | . . Flight . | . . Utility 5 | 1 4 Device 1 | . 1 Storage 3 | 1 2 Processor 1 | . 1 Hackware . | . . Protection . | . . Artifact . | . . Weapon 6 | 3 3 Energy Gun 2 | . 2 Energy Cannon . | . . Ballistic Gun 3 | 3 . Ballistic Cannon . | . . Launcher . | . . Special Weapon . | . . Impact Weapon . | . . Slashing Weapon 1 | . 1 Piercing Weapon . | . . Special Melee Weapon . | . . Unidentified Prototypes . | . . Parts Lost 6 | . 6 Power 2 | . 2 Propulsion 2 | . 2 Utility 1 | . 1 Weapon 1 | . 1 Highest Loss Streak 4 | . 4 To Critical Strikes . | . . Average Backups 5 | 2 5 Power 2 | . 2 Propulsion 2 | 1 2 Utility . | . . Weapon . | . . Tool/Special . | . . Unused Backups 14 | . 14 Power 9 | . 9 Propulsion 5 | . 5 Utility . | . . Weapon . | . . Tool/Special . | . . Average Slot Usage (%) 83 | . 83 Engine 10 | . 10 Treads 19 | . 19 Leg 5 | . 5 Wheel 2 | . 2 Device 1 | . 1 Storage 16 | . 16 Processor 1 | . 1 Energy Gun 1 | . 1 Ballistic Gun 13 | . 13 Slashing Weapon 11 | . 11 Peak Build Rating 9 | 6 9 Average Rating 6 | 4 6 On Entrance 3 | . 6 Avg Prop Armor Cover (%) . | . . Naked Turns . | . . Heaviest Build 26 | 13 26 Greatest Support 40 | 40 40 Greatest Overweight (x) 3 | 1 3 Average Overweight (x) . | . . Largest Inventory Capacity 10 | 8 10 Average Capacity 8 | 7 8 Most Carried 10 | 4 10 Average Carried 5 | 2 5 Final Capacity 10 | 8 10 Final Carried 10 | 4 10 Class Distribution -------------------- 100% | Mutant Dominant Class ---------------- Mutant | -10/Materials Resources | -11 -10 ----------- Run | Yrd Mat Matter Collected 598 | 250 348 Remotely . | . . Salvage Created 596 | . 596 Parts 35 | . 35 Haulers Intercepted . | . . Recyclers Shooed 1 | . 1 Parts Field Recycled . | . . Retrieved Matter . | . . Parts Self-Destructed . | . . Prevented . | . . Parts Restored . | . . Kills | -11 -10 ------- Run | Yrd Mat Combat Hostiles Destroyed 10 | . 10 Melee 1 | . 1 Guns 9 | . 9 Classes Destroyed 6 | . 6 Worker 2 | . 2 Builder 1 | . 1 Recycler 2 | . 2 Watcher 2 | . 2 Swarmer 3 | . 3 Grunt 7 | . 7 Best Kill Streak 5 | . 5 Combat Bots Only 3 | . 3 Max Kills in Single Turn 1 | . 1 Gunslinging . | . . Exploded . | . . Melee 1 | . 1 Uniques/NPCs Destroyed . | . . Combat | -11 -10 -------- Run | Yrd Mat Hostile Shots Fired 138 | . 138 Missed 43 | . 43 Hits 95 | . 95 Projectile 95 | . 95 Critical Strikes 1 | . 1 Damage Taken 1066 | . 1066 Core 257 | . 257 Absorbed by Shields . | . . Core Remaining (%) 100 | 100 . Volleys Fired 96 | . 96 Largest 2 | . 2 Hottest 65 | . 65 Shots Fired 127 | . 127 Gun 127 | . 127 Cannon . | . . Launcher . | . . Special . | . . Kinetic 117 | . 117 Thermal 10 | . 10 Explosive . | . . Electromagnetic . | . . Robot Hit Streak 10 | . 10 Robot Miss Streak 5 | . 5 Penetration Max . | . . Secondary Targets . | . . Shots Hit Robots 83 | . 83 Core Hits 37 | . 37 Critical Kills . | . . Critical Parts Destroyed . | . . Critical Strikes 1 | . 1 Burn 1 | . 1 Melee Attacks 4 | . 4 Impact . | . . Slashing 4 | . 4 Piercing . | . . Sneak Attacks . | . . Combat Hostiles . | . . Follow-up Attacks . | . . Damage Inflicted 895 | . 895 Guns 822 | . 822 Cannons . | . . Explosions . | . . Melee 73 | . 73 Ramming . | . . Kinetic 718 | . 718 Thermal 104 | . 104 Explosive . | . . Electromagnetic . | . . Impact . | . . Slashing 73 | . 73 Piercing . | . . Highest Corruption . | . . Average Corruption . | . . Corruption Purged . | . . Corruption Blocked . | . . Overload Shots . | . . Overflow Damage . | . . Projectiles . | . . Explosions . | . . Melee . | . . Knockbacks . | . . Impact . | . . Kinetic . | . . Secondary . | . . Self-Inflicted Damage . | . . Shots . | . . Rammed . | . . Targets Rammed . | . . Kicked . | . . Crushed . | . . Highest Temperature 33 | . 33 Average Temperature 11 | . 11 Received Heat Transfer 483 | . 483 Siege Activations . | . . Martial Activations . | . . Shielding Activations . | . . Robots Disrupted . | . . Combat Hostiles . | . . Robots Corrupted . | . . Combat Hostiles . | . . Parts Fried . | . . Impact Corruptions . | . . Robots Melted . | . . Combat Hostiles . | . . Parts Melted 1 | . 1 Heat Transferred 311 | . 311 Parts Sabotaged . | . . Parts Stolen . | . . Parts Stripped . | . . Power Chain Reactions . | . . Alert | -11 -10 ------- Run | Yrd Mat Maximum Alert Level . | . . Low Security (%) 100 | 100 100 Level 1 . | . . Level 2 . | . . Level 3 . | . . Level 4 . | . . Level 5 . | . . High Security . | . . Max Security . | . . Peak Influence 77 | . 77 Initial . | . . Average 13 | . 15 Influence Increases 299 | . 299 Destroy 0b10 Robot/C 200 | . 200 Destroy 0b10 Robot/NC 35 | . 35 Destroy Leader 34 | . 34 Partial Spotted 15 | . 15 Lose Combat Pursuer 15 | . 15 Influence Decreases 269 | . 269 Time Decay 240 | . 240 Lost Part 29 | . 29 Squads Dispatched 1 | . 1 Investigation . | . . Extermination . | . . Reinforcement 1 | . 1 Assault . | . . Garrison . | . . Intercept . | . . Searches Triggered . | . . Construction Impeded . | . . Haulers Reinforced . | . . Active Scanning Responses . | . . Cargo Convoy Interrupts . | . . Stealth | -11 -10 --------- Run | Yrd Mat Distress Signals 3 | . 3 Communications Jammed . | . . Distress Signals . | . . Times Spotted 19 | . 19 Peak Tracking Total 4 | . 4 Tactical Retreats 1 | . 1 Traps | -11 -10 ------- Run | Yrd Mat Traps Triggered . | . . Indirectly . | . . Trap Hack Attempts . | . . Triggered . | . . Disarmed . | . . Reprogrammed . | . . Reused . | . . Traps Extracted . | . . Installed . | . . Triggered . | . . Machines | -11 -10 ---------- Run | Yrd Mat Machines Disabled . | . . Max in Single Turn . | . . Machines Repaired . | . . Machines Dismantled . | . . Machines Sabotaged . | . . Overloaded Fab Kills . | . . Hacking | -11 -10 --------- Run | Yrd Mat Machines Accessed . | . . Terminals . | . . Fabricators . | . . Repair Stations . | . . Recycling Units . | . . Scanalyzers . | . . Garrison Access . | . . Total Hacks . | . . Successful . | . . Failed . | . . Catastrophic . | . . Database Lockouts . | . . Manual . | . . Terminals . | . . Fabricators . | . . Repair Stations . | . . Recycling Units . | . . Scanalyzers . | . . Garrison Access . | . . Terminal Hacks . | . . Fabricator Hacks . | . . Repair Station Hacks . | . . Recycling Unit Hacks . | . . Scanalyzer . | . . Garrison Access Hacks . | . . Unauthorized Hacks . | . . Terminals . | . . Fabricators . | . . Repair Stations . | . . Recycling Units . | . . Scanalyzers . | . . Garrison Access . | . . Data Cores Recovered . | . . Used . | . . Hacking Detections . | . . Full Trace Events . | . . Feedback Events . | . . Feedback Blocked . | . . Robot Schematics Acquired . | . . Robots Built . | . . Authchips . | . . Time . | . . Total Robot Build Rating . | . . Part Schematics Acquired . | . . Parts Built . | . . Authchips . | . . Time . | . . Total Part Build Rating . | . . Part Studies Acquired . | . . Parts Repaired . | . . Time . | . . Parts Recycled . | . . Recycled Matter . | . . Retrieved Matter . | . . Retrieved Components . | . . Parts Scanalyzed . | . . Part Schematics Acquired . | . . Parts Damaged . | . . Bothacking | -11 -10 ------------ Run | Yrd Mat Used RIF Installer . | . . Robots Hacked . | . . Non-combat . | . . Combat . | . . Robot Hacks Applied . | . . Relay Couplers Released . | . . Fabnet Peak Effective % . | . . Robots Rewired . | . . Allies Hacked . | . . Hacks Repelled . | . . Allies | -11 -10 -------- Run | Yrd Mat Total Allies . | . . Largest Group . | . . Highest-Rated Group . | . . Highest-Rated Ally . | . . Total Orders . | . . Ally Attacks . | . . Total Damage . | . . Kills . | . . Allies Corrupted . | . . Allies Melted . | . . Intel | -11 -10 ------- Run | Yrd Mat Active Infowar (turns) 163 | . 163 Optics 90 | . 90 Terrain 73 | . 73 Robot Analysis Total . | . . Derelict Logs Recovered . | . . Drone Launches . | . . Drone Recoveries . | . . Exploration | -11 -10 ------------- Run | Yrd Mat Turns Passed 1087 | 95 992 Spaces Moved 496 | 53 443 Core 16 | 7 9 Treads 319 | 46 273 Legs 102 | . 102 Wheels 59 | . 59 Hover . | . . Flight . | . . Fastest Speed 50 | 50 100 Average Speed 151 | 149 151 Slowest Speed 200 | 160 200 Overloaded Moves . | . . Propulsion Burnouts . | . . Robots Hopped . | . . Potential Cave-ins . | . . Cave-ins Triggered . | . . Exploration Rate (%) 24 | 6 42 Regions Visited 1 Branch Regions . Pre-discovered Areas . | . . Known Exits Taken . | . . Unknown Exits Taken 1 | 1 . Scrap Searched . | . . Spaces Dug . | . . Terrain Destroyed . | . . Melee . | . . Projectile . | . . AOE . | . . Terrain Rammed . | . . Walls Destroyed . | . . Machines Disabled . | . . Actions | -11 -10 --------- Run | Yrd Mat Total 713 | 69 644 Wait 49 | . 49 Move 495 | 52 443 Hop . | . . Pick Up 35 | 10 25 Fast Attach . | . . Attach 13 | 6 7 Detach . | . . Swap 9 | 1 8 Drop 12 | . 12 Fire 96 | . 96 Melee 4 | . 4 Ram . | . . Kick . | . . Crush . | . . Escape Stasis . | . . Rewire . | . . Trap . | . . Miscellaneous . | . . Route ------- -11/Scrapyard -10/Materials (discovered 2 exits: [*Mat] / [*Min]) History --------- Turn | Location | Event 36 | -11/Scrapyard | Discovered new exit (range 15) 96 | -11/Scrapyard | Entered Materials 320 | -10/Materials | Build established: Mutant 563 | -10/Materials | Discovered new exit (range 12) 704 | -10/Materials | Core integrity fell below 50% 888 | -10/Materials | Lost 4 parts (1p2n1w) 895 | -10/Materials | Discovered new exit (range 15) 1045 | -10/Materials | Core integrity fell below 20% 1088 | -10/Materials | Destroyed by G-34 Mercenary with Small Laser Last Messages --------------- 00912_ K-01 Serf collects debris. 00913_ Acquired Lgt. Ion Engine. 00915_ K-01 Serf collects debris. 00915_ Acquired Lgt. Ion Engine. 00920_ Dropped Lgt. Ion Engine. 00922_ Acquired 10 matter. 00948_ Acquired Med. Storage Unit. 00966_ Acquired Sml. Laser. 00968_ Acquired 11 matter. 00971_ Acquired Lgt. Ion Engine. 01035_ K-01 Serf destroyed. 01054_ U-05 Engineer destroyed. 01054_ K-01 Serf collects debris. 01062_ K-01 Serf destroyed. 01081_ Imp. Heat Sink melted. 01081_ G-47 Trooper destroyed. 01083_ K-01 Serf collects debris. 01087_ Dropped Sml. Laser. 01088_ G-34 Mercenary suffers critical hit (Burn). Map ----- +----------------------------------------------------+ | + """ %+ #??????????????????????????????? | | #### #!*= #??????????????????????????????? | | #??# #% *= #??????????????????????????????? | | ###########[|* ########???????????????????????? | | # """" #??#*[ ^ ????????????????? | | # """" #??#% =#############?????????????????????? | | # """" #??#! %#?????????????????????????????????? | | # #??#%==#????????? ???????????????????????? | | # #??# =#???#?????????????????????????????? | | #*!== #??# #########?????????????????????????? | | ###+####### # #?????????????????????????? | | [ % # #?????????????????????????? | | [ # !#?????????????????????????? | | # ##################+###????? | | #### ######### # #???? | | ???# #????#??#[ + < #???? | | ?#?# ##????#?# # #???? | | ???# # ???#??# # * ##########?????? | | ???# # ??????# # k #??????????????? | | ???# # ? ???# #!|!* ! #??????????????? | | ?#?# # ?????# #%! = ########???????? | | ???# # ? ############!= #???????? | | ??## # ??+ =% #???????? | | ???# # ?#### ####### % = #???????? | | ???# # ????# #?######g##########% #???????? | | ???# # ??### ### @ #??????= #???????? | | ???# ###+### # """ #??????? ?????? | | ???# # """"" #??????? ??? | | ???# ^ # """"" #???????? """ ?? | | ???# ^ # """"" #???????? """ !![ ? | | ???# ####### # """ #?????????""" !![ ? | | ???# #?????####### #????????? ?? ![[?? | | ???# #???????????# #?????????? ?????? ?? | | ??## ##??????????###########?????????? ???????? | | ??# #???????????????????????????????? ???????? | | ??# ???????????????????????????????????? | | ? " ??????????????????????????????? | | ### ?????????????????????????????? | | ??# # ##########?????????????????????????????? | | ??####### #??????????????????????????????????????? | | ????????? #??????????????????????????????????????? | | ??????????#??????????????????????????????????????? | | ?????????????????????????????????????????????????? | | ?????????????????????????????????????????????????? | | ?????????????????????????????????????????????????? | | ?????????????????????????????????????????????????? | | ?????????????????????????????????????????????????? | | ?????????????????????????????????????????????????? | | ?????????????????????????????????????????????????? | | ?????????????????????????????????????????????????? | +----------------------------------------------------+ Best States ------------- Heat Dissipation 25 Energy Generation 10 Energy Capacity 250 Matter Stores 300 Matter Capacity 300 Sight Range 18 Terrain Scan Range 14 Terrain Scan Density 10 Evasion (%) 55 Recoil Reduction 2 Item Schematics ----------------- None Robot Schematics ------------------ None Fabricated ------------ Nothing Repaired ---------- Nothing Studied --------- None Alien Tech Used ----------------- None Achievements -------------- None Challenges ------------ None Game ------ Seed MyomerReactionSheargun Manual? 0 Play Time 00:13:23 Cumulative 14.2 hours Start 2025.10.24 @ 19:10:00 End 2025.10.24 @ 19:19:51 Sessions 1 Manual Loads 0 Difficulty Rogue Special Mode None Game No. 43 Rogue 43 Adventurer 0 Explorer 0 Win Type - Total 0 Types 0/0/0/0/0/0/0/0/0/0 Lore% 9 Gallery% 19 Achievement% 14 Wizard Run 0 Options --------- Layout 1 ASCII 0 Keyboard 0 Movement Mouse Keybinds 0 Fullscreen 1 Font 32/SmallcapsGlow Map View 50x35 Zoom Use 0% Tactical HUD 1 Map Filters NONE Filters NONE Steam 1 RUN: b515edb9-7c0b-421f-9dbf-afa07929b782